Workbook

Sheet عميل1
A1: عميل1
A2: التاريخ | B2: البيان | C2: مدين | D2: دائن | E2: الرصيد
A3: 2018-08-01 | B3: مبيعات | C3: 1000 | E3: =C3-D3 -> 1000
A4: 2018-08-02 | B4: تسديدات | D4: 200 | E4: =E3+C4-D4 -> 800
C21: =SUM(C3:C20) -> 1000 | D21: =SUM(D3:D20) -> 200 | E21: =C21-D21 -> 800

Sheet عميل2
A1: عميل2
A2: التاريخ | B2: البيان | C2: مدين | D2: دائن | E2: الرصيد
A3: 2018-08-01 | B3: مبيعات | C3: 5600 | E3: =C3-D3 -> 5600
A4: 2018-08-02 | B4: تسديدات | D4: 2000 | E4: =E3+C4-D4 -> 3600
C21: =SUM(C3:C20) -> 5600 | D21: =SUM(D3:D20) -> 2000 | E21: =C21-D21 -> 3600

Sheet عميل3
A1: عميل3
A2: التاريخ | B2: البيان | C2: مدين | D2: دائن | E2: الرصيد
A3: 2018-08-01 | B3: مبيعات | C3: 4600 | E3: =C3-D3 -> 4600
A4: 2018-08-02 | B4: تسديدات | D4: 1900 | E4: =E3+C4-D4 -> 2700
C21: =SUM(C3:C20) -> 4600 | D21: =SUM(D3:D20) -> 1900 | E21: =C21-D21 -> 2700

Sheet عميل4
A1: عميل4
A2: التاريخ | B2: البيان | C2: مدين | D2: دائن | E2: الرصيد
A3: 2018-08-01 | B3: مبيعات | C3: 4654 | E3: =C3-D3 -> 4654
A4: 2018-08-02 | B4: تسديدات | D4: 4100 | E4: =E3+C4-D4 -> 554
C21: =SUM(C3:C20) -> 4654 | D21: =SUM(D3:D20) -> 4100 | E21: =C21-D21 -> 554

Sheet عميل5
A1: عميل5
A2: التاريخ | B2: البيان | C2: مدين | D2: دائن | E2: الرصيد
A3: 2018-08-01 | B3: مبيعات | C3: 6547 | E3: =C3-D3 -> 6547
A4: 2018-08-02 | B4: تسديدات | D4: 4562 | E4: =E3+C4-D4 -> 1985
C21: =SUM(C3:C20) -> 6547 | D21: =SUM(D3:D20) -> 4562 | E21: =C21-D21 -> 1985

Sheet اجمالي
B1: مدين | C1: دائن | D1: الرصيد
A2: عميل1 | B2: 1000 | C2: 200 | D2: 800
A3: عميل2 | B3: 5600 | C3: 2000 | D3: 3600
A4: عميل3 | B4: 4600 | C4: 1900 | D4: 2700
A5: عميل4 | B5: 4654 | C5: 4100 | D5: 554
A6: عميل5 | B6: 6547 | C6: 4562 | D6: 1985
A7: عميل6 | B7: 100 | C7: 80 | D7: 20
A8: الإجمالي | B8: 22501 | C8: 22501 | D8: 22501
B19: =SUM(B2:B18) -> 45002 | C19: =SUM(C2:C18) -> 35343 | D19: =B19-C19 -> 9659

Sheet عميل6
A1: عميل6
A2: التاريخ | B2: البيان | C2: مدين | D2: دائن | E2: الرصيد
A3: 2018-08-01 | B3: مبيعات | C3: 100 | E3: =C3-D3 -> 100
A4: 2018-08-02 | B4: تسديدات | D4: 80 | E4: =E3+C4-D4 -> 20
C21: =SUM(C3:C20) -> 100 | D21: =SUM(D3:D20) -> 80 | E21: =C21-D21 -> 20
